bitfinex/quotes_SOLUSD_20241009
["timestamp","ask_amount","ask_price","bid_price","bid_amount"]
[1728487394974,1.41709607,142.66,142.62,24.5401]
[1728487395296,8.42679607,142.66,142.62,24.5401]
[1728487395496,1.41709607,142.66,142.63,7.0111]
[1728487395800,1.41709607,142.66,142.62,24.5401]
[1728487395973,0.12549,142.65,142.62,24.5401]
[1728487396176,1.41709607,142.64,142.62,17.5287]
[1728487396988,1.41709607,142.64,142.62,24.5403]
[1728487397298,0.12549,142.65,142.62,24.5403]
[1728487397299,1.66807607,142.65,142.62,24.5403]
[1728487397476,1.41709607,142.65,142.62,24.5403]
[1728487398179,1.66807607,142.66,142.62,24.5403]
[1728487398387,1.41709607,142.66,142.62,38.21046267]
[1728487398591,1.41709607,142.66,142.64,7.0106]
[1728487399093,1.54258607,142.68,142.64,7.0106]
[1728487399880,0.12549,142.67,142.64,7.0106]
[1728487400093,1.41709607,142.66,142.64,7.0106]
[1728487400631,1.41709607,142.66,142.59,17.532]
[1728487400632,7.13669,142.63,142.59,17.532]
[1728487400804,7.13669,142.63,142.56,55.75306267]
[1728487400805,0.12549,142.61,142.57,7.0137]
[1728487401102,0.12549,142.61,142.56,17.5361]
[1728487401103,1.41709607,142.6,142.56,24.5505]
[1728487401475,1.41709607,142.6,142.56,17.5361]
[1728487401674,1.41709607,142.6,142.57,7.014]
[1728487401890,1.41709607,142.6,142.56,17.5361]
[1728487402094,1.41709607,142.61,142.58,17.5335]
[1728487402301,1.54258607,142.62,142.59,7.0127]
[1728487402490,1.54258607,142.62,142.58,24.547]
[1728487402491,0.12549,142.61,142.58,24.547]
[1728487402689,1.41709607,142.6,142.58,24.547]
[1728487403007,1.41709607,142.6,142.58,17.5335]
[1728487403604,1.41709607,142.6,142.57,7.0139]
[1728487404410,0.12549,142.6,142.57,7.0139]
[1728487404823,1.41709607,142.63,142.58,22.08451207]
[1728487404997,12.37228402,142.72,142.62,7.0116]
[1728487404998,23.3142,142.67,142.62,7.0116]
[1728487405203,1.41709607,142.66,142.63,7.0109]
[1728487405519,1.41709607,142.66,142.64,7.0106]
[1728487405820,1.41709607,142.66,142.63,24.5385]
[1728487406612,1.41709607,142.66,142.64,7.0105]
[1728487406796,1.41709607,142.66,142.65,7.0101]
[1728487407112,1.41709607,142.7,142.65,17.5251]
[1728487407316,1.41709607,142.7,142.68,7.0086]
[1728487409109,1.41709607,142.7,142.67,7.009]
[1728487411296,1.41709607,142.7,142.66,7.0094]
[1728487413903,0.12549,142.69,142.66,7.0094]
[1728487414224,0.25098,142.67,142.63,7.011]
[1728487414422,1.41709607,142.66,142.63,7.011]
[1728487415028,1.41709607,142.66,142.62,24.5399]
[1728487415226,0.25098,142.65,142.62,24.5399]
[1728487415403,1.41709607,142.64,142.62,17.5284]
[1728487415603,15.0334,142.71,142.62,17.5284]
[1728487415604,7.0091,142.68,142.62,17.5284]
[1728487415824,1.41709607,142.67,142.64,7.0106]
[1728487416406,1.41709607,142.67,142.64,24.5368]
[1728487416609,1.41709607,142.67,142.64,17.5264]
[1728487417210,1.41709607,142.67,142.64,24.5369]
[1728487417730,0.12549,142.66,142.64,24.5369]
[1728487418028,0.12549,142.66,142.64,17.5264]
[1728487418730,1.41709607,142.67,142.64,17.5264]
[1728487418900,1.41709607,142.68,142.64,17.5264]
[1728487419408,1.41709607,142.68,142.66,7.0096]
[1728487419607,1.41709607,142.68,142.67,7.0091]
[1728487419920,1.41709607,142.7,142.66,17.5239]
[1728487420703,1.41709607,142.74,142.7,7.0074]
[1728487420906,1.41709607,142.74,142.68,18.92287496]
[1728487421206,1.41709607,142.74,142.65,52.5735]
[1728487421413,7.0081,142.7,142.66,7.0094]
[1728487421703,1.41709607,142.69,142.66,7.0094]
[1728487421912,0.25098,142.72,142.67,17.5224]
[1728487422127,0.12549,142.7,142.67,24.5313]
[1728487422337,1.66807607,142.7,142.67,24.5313]
[1728487422629,1.66807607,142.7,142.68,7.0086]
[1728487423309,1.66807607,142.71,142.68,7.0086]
[1728487424815,1.66807607,142.71,142.69,7.0078]
[1728487425019,0.12549,142.71,142.69,7.0078]
[1728487425328,1.41709607,142.72,142.69,7.0078]
[1728487425329,1.41709607,142.72,142.69,24.5281]
[1728487425708,1.41709607,142.72,142.7,7.0075]
[1728487425904,1.41709607,142.73,142.7,7.0075]
[1728487426629,1.41709607,142.73,142.72,7.0067]
[1728487427023,1.41709607,142.74,142.72,7.0067]
[1728487428227,1.41709607,142.75,142.71,17.5179]
[1728487428736,0.12549,142.74,142.71,17.5179]
[1728487429309,0.25098,142.74,142.71,17.5179]
[1728487429927,0.25098,142.74,142.72,7.0067]
[1728487430325,0.25098,142.74,142.71,17.5179]
[1728487430532,1.41709607,142.73,142.71,17.5179]
[1728487430734,1.41709607,142.73,142.71,24.5251]
[1728487431439,1.66807607,142.74,142.71,24.5251]
[1728487432716,1.66807607,142.74,142.72,7.0066]
[1728487433028,0.12549,142.74,142.72,7.0066]
[1728487435842,1.41709607,142.75,142.73,7.0061]
[1728487436137,1.66807607,142.76,142.73,7.0061]
[1728487437632,8.67277607,142.76,142.71,17.5179]
[1728487437945,0.25098,142.75,142.72,7.0066]
[1728487440831,24.027864,142.75,142.68,17.5206]
[1728487441147,0.12549,142.71,142.65,17.5244]
[1728487441333,0.25098,142.69,142.66,7.0093]
[1728487441537,1.41709607,142.7,142.67,7.0088]
[1728487441922,0.25098,142.69,142.66,7.0094]
[1728487442257,1.41709607,142.68,142.66,7.0094]
[1728487442553,1.41709607,142.68,142.67,7.0091]
[1728487442727,1.41709607,142.69,142.67,7.0091]
[1728487442926,1.41709607,142.71,142.7,7.0076]
[1728487443227,15.928,142.72,142.65,35.0487]
[1728487443228,1.41709607,142.72,142.71,7.0072]
[1728487443430,1.41709607,142.73,142.71,7.0072]
[1728487443831,1.41709607,142.74,142.73,7.0062]
[1728487444027,1.41709607,142.75,142.73,7.0062]
[1728487446635,1.41709607,142.75,142.73,17.5154]
[1728487446835,1.41709607,142.75,142.73,24.5214]
[1728487448334,1.41709607,142.76,142.73,24.5214]
[1728487448557,15.7139,142.79,142.71,1.40123328]
[1728487448558,1.41709607,142.79,142.76,17.511]
[1728487448745,7.29517092,142.8,142.76,17.511]
[1728487448746,1.41709607,142.8,142.78,7.0033]
[1728487448942,1.41709607,142.82,142.77,20.65063124]
[1728487449148,1.41709607,142.82,142.8,7.0027]
[1728487449342,1.41709607,142.82,142.79,20.65063124]
[1728487449662,22.3653,142.84,142.8,17.5067]
[1728487449663,1.41709607,142.84,142.8,17.5067]
[1728487449953,1.41709607,142.84,142.81,7.0021]
[1728487450457,1.41709607,142.84,142.8,17.5067]
[1728487450658,0.25098,142.83,142.8,17.5067]
[1728487450961,1.41709607,142.82,142.8,17.5067]
[1728487451755,0.25098,142.84,142.8,17.5067]
[1728487452062,1.66807607,142.84,142.81,7.0021]
[1728487452360,1.54258607,142.84,142.82,7.0016]
[1728487452659,1.41709607,142.85,142.82,17.504]
[1728487452867,1.41709607,142.87,142.82,17.504]
[1728487453034,1.41709607,142.87,142.84,17.5016]
[1728487453235,1.41709607,142.87,142.85,7.0002]
[1728487453458,1.41709607,142.87,142.84,17.5016]
[1728487453661,1.41709607,142.87,142.84,24.5023]
[1728487454344,0.12549,142.86,142.84,24.5023]
[1728487454865,0.12549,142.86,142.85,7.0003]
[1728487455659,1.41709607,142.87,142.85,7.0003]
[1728487455841,1.66807607,142.88,142.85,7.0003]
[1728487456040,1.66807607,142.88,142.84,17.5016]
[1728487456252,8.66707607,142.88,142.84,24.5023]
[1728487456453,8.66707607,142.88,142.84,17.5016]
[1728487456848,1.41709607,142.87,142.84,17.5016]
[1728487457164,0.25098,142.86,142.84,17.5016]
[1728487457368,1.41709607,142.85,142.82,7.0014]
[1728487457657,1.41709607,142.85,142.81,17.5049]
[1728487457658,0.25098,142.84,142.81,24.5072]
[1728487458033,0.25098,142.84,142.82,7.0017]
[1728487458257,7.28815205,142.91,142.83,20.65063124]
[1728487458258,0.25098,142.88,142.83,20.65063124]
[1728487458460,1.41709607,142.88,142.87,6.999]
[1728487458664,1.41709607,142.91,142.88,6.9988]
[1728487458843,1.41709607,142.91,142.9,6.9979]
[1728487459244,13.93286933,142.95,142.89,20.65063124]
[1728487459245,6.6427,142.95,142.89,20.65063124]
[1728487459462,6.6427,142.95,142.87,20.65063124]
[1728487459463,2.82784317,142.97,142.91,38.14353124]
[1728487459669,2.82784317,142.97,142.92,1.39923571]
[1728487459839,2.82784317,142.97,142.94,6.9958]
[1728487460044,9.82224317,142.97,142.93,24.4866]
[1728487460239,2.82784317,142.97,142.93,17.4902]
[1728487460454,2.82784317,142.97,142.94,6.9959]
[1728487462360,0.12549,142.96,142.94,6.9959]
[1728487462945,1.41709607,142.95,142.93,17.4902]
[1728487463138,2.82784317,142.97,142.93,24.4866]
[1728487463339,2.82784317,142.97,142.94,6.9957]
[1728487463858,2.82784317,142.97,142.93,17.4902]
[1728487464263,9.82244317,142.97,142.93,17.4902]
[1728487464463,0.25098,142.96,142.93,17.4902]
[1728487464663,1.41709607,142.95,142.93,17.4902]
[1728487465771,2.82784317,142.97,142.93,38.14083124]
[1728487465988,1.4107471,142.97,142.95,6.9953]
[1728487466153,1.4107471,142.97,142.93,38.14083124]
[1728487466354,1.4107471,142.97,142.96,6.9949]
[1728487468059,7.27882311,143.05,143.01,6.9924]
[1728487468060,1.41709607,143.04,143.01,6.9924]
[1728487469268,6.9902,143.06,143.01,6.9924]
[1728487469269,1.41709607,143.05,143.01,6.9924]
[1728487469471,8.40779607,143.05,143.0,24.4745]
[1728487469874,6.9911,143.04,143.0,17.4816]
[1728487470077,8.40859607,143.03,142.99,6.9934]
[1728487470378,6.9914,143.04,143.0,6.9929]
[1728487470549,1.41709607,143.05,143.01,6.9923]
[1728487470751,8.40769607,143.05,143.01,6.9923]
[1728487470960,21.5988,143.08,143.02,6.9919]
[1728487470961,1.41709607,143.06,143.02,6.9919]
[1728487471172,1.41709607,143.06,143.03,6.9912]
[1728487472055,1.41709607,143.07,143.03,6.9912]
[1728487472792,6.9906,143.05,143.01,17.4804]
[1728487473075,1.41709607,143.04,143.01,24.4728]
[1728487473576,1.41709607,143.07,143.04,6.9906]
[1728487474081,1.41709607,143.09,143.05,6.9902]
[1728487474274,1.41709607,143.09,143.06,6.9899]
[1728487474576,1.41709607,143.09,143.04,6.9906]
[1728487474980,1.41709607,143.09,143.03,38.12873124]
[1728487474981,1.41709607,143.09,143.03,20.65063124]
[1728487475154,21.7398,143.12,143.07,6.9895]
[1728487475155,9.23554317,143.11,143.07,6.9895]
[1728487475352,2.24784317,143.11,143.07,6.9895]
[1728487475975,9.23544317,143.11,143.07,6.9895]
[1728487476572,6.9882,143.1,143.06,6.99]
[1728487476767,8.40529607,143.1,143.06,6.99]
[1728487476967,9.23554317,143.11,143.07,6.9894]
[1728487477478,9.23554317,143.11,143.05,38.12653124]
[1728487477683,2.24784317,143.11,143.06,6.9899]
[1728487477874,9.23584317,143.11,143.06,6.9899]
[1728487478473,9.23584317,143.11,143.05,38.12653124]
[1728487478793,2.24784317,143.11,143.07,6.9894]
[1728487478966,9.23554317,143.11,143.07,6.9894]
[1728487479573,2.24784317,143.11,143.07,20.65063124]
[1728487479769,2.24784317,143.11,143.09,20.65063124]
[1728487479770,0.8307471,143.11,143.09,20.65063124]
[1728487480086,7.8183471,143.11,143.07,45.11353124]
[1728487480276,0.8307471,143.11,143.07,45.11353124]
[1728487480782,1.41709607,143.1,143.07,38.12403124]
[1728487480971,1.41709607,143.1,143.07,17.4734]
[1728487481370,1.41709607,143.1,143.06,1.39787767]
[1728487481569,0.8307471,143.11,143.08,6.989]
[1728487481788,0.8307471,143.11,143.09,22.04830932]
[1728487481990,0.8307471,143.11,143.1,8.38556182]
[1728487482288,0.8307471,143.11,143.1,6.9881]
[1728487483232,0.8307471,143.11,143.09,20.65063124]
[1728487483373,0.8307471,143.11,143.1,8.38544068]
[1728487483574,1.41709607,143.17,143.13,6.9866]
[1728487483993,6.9853,143.16,143.12,17.4678]
[1728487484164,6.9853,143.16,143.12,24.4549]
[1728487484670,1.41709607,143.15,143.12,24.4549]
[1728487484875,1.41709607,143.15,143.12,17.4678]
[1728487485279,6.9853,143.16,143.12,17.4678]
[1728487485595,1.41709607,143.15,143.12,24.4549]
[1728487486099,1.41709607,143.15,143.12,17.4678]
[1728487486478,1.41709607,143.15,143.1,27.63853124]
[1728487486790,0.25098,143.15,143.07,6.9894]
[1728487487097,6.9876,143.11,143.06,61.68713124]
[1728487487302,1.66807607,143.15,143.07,8.38714468]
[1728487487508,8.52868607,143.15,143.1,20.65063124]
[1728487487675,6.9862,143.14,143.1,20.65063124]
[1728487487985,8.40329607,143.14,143.1,22.04805937]
[1728487488174,6.9862,143.14,143.1,22.04805937]
[1728487488376,6.9862,143.14,143.1,29.03615937]
[1728487489297,6.9862,143.14,143.1,20.65063124]
[1728487489996,8.40389607,143.13,143.08,45.11153124]
[1728487490198,6.9868,143.13,143.08,45.11153124]
[1728487490782,6.9859,143.15,143.12,20.65063124]
[1728487490994,1.41709607,143.16,143.11,1.3973114]
[1728487491191,6.9857,143.15,143.11,8.3848114]
[1728487491699,6.9857,143.15,143.11,6.9875]
[1728487491897,6.9857,143.15,143.1,45.10853124]
[1728487492201,6.9867,143.13,143.1,20.65063124]
[1728487492576,6.9871,143.12,143.08,27.63953124]
[1728487492894,6.9878,143.11,143.08,20.65063124]
[1728487493208,6.9878,143.11,143.07,24.4628]
[1728487493209,6.9878,143.11,143.07,18.87091136]
[1728487493407,6.9878,143.11,143.07,17.4733]
[1728487493699,6.9878,143.11,143.07,18.87094056]
[1728487493894,6.9878,143.11,143.07,25.86034056]
[1728487494088,6.9878,143.11,143.08,20.65063124]
[1728487494498,6.9866,143.13,143.09,1.39763785]
[1728487494704,8.40369607,143.13,143.09,1.39763785]
[1728487494900,6.9871,143.12,143.09,1.39763785]
[1728487495788,6.9871,143.12,143.08,27.63963124]
[1728487495988,8.40469607,143.11,143.08,20.65063124]
[1728487496189,8.40469607,143.11,143.07,17.4733]
[1728487496788,6.9883,143.1,143.06,27.64053124]
[1728487496985,6.9876,143.11,143.07,6.9895]
[1728487497299,22.6701,143.13,143.08,22.04824729]
[1728487497300,29.6568,143.13,143.08,22.04824729]
[1728487497490,23.0071,143.13,143.08,20.65063124]
[1728487497793,23.0071,143.13,143.09,6.9885]
[1728487498505,6.9867,143.13,143.08,45.11173124]
[1728487499014,8.40459607,143.12,143.08,38.12283124]
[1728487499180,6.9875,143.12,143.08,38.12283124]
[1728487499385,6.9875,143.12,143.08,45.11183124]
[1728487499585,6.9881,143.1,143.05,18.87380823]
[1728487499885,6.9876,143.12,143.08,20.65063124]
[1728487500090,1.41709607,143.12,143.08,20.65063124]
[1728487500299,6.9877,143.11,143.08,20.65063124]
[1728487500507,1.41709607,143.14,143.08,20.65063124]
[1728487500701,6.1364,143.17,143.1,20.65063124]
[1728487500913,6.1364,143.17,143.13,6.9865]
[1728487500914,13.1212,143.17,143.13,6.9865]
[1728487501089,13.1212,143.17,143.12,27.63733124]
[1728487501289,13.1212,143.17,143.12,27.63763124]
[1728487501493,6.9852,143.16,143.12,20.65063124]
[1728487501685,6.9862,143.14,143.1,6.988]
[1728487501892,6.1364,143.17,143.09,27.63913124]
[1728487501893,6.987,143.13,143.09,27.63913124]
[1728487502404,7.55349607,143.17,143.11,20.65063124]
[1728487502599,13.1212,143.17,143.12,8.38377618]
[1728487502780,6.9851,143.16,143.12,1.39707618]
[1728487502981,6.1364,143.17,143.12,1.39707741]
[1728487503188,1.41709607,143.16,143.11,20.65063124]
[1728487503497,6.9865,143.14,143.1,17.4698]
[1728487503979,6.9865,143.14,143.11,1.39732202]
[1728487504188,6.9865,143.14,143.1,24.4579]
[1728487504698,6.987,143.13,143.09,6.9885]
[1728487505101,6.987,143.13,143.08,39.83904142]
[1728487505293,6.987,143.13,143.09,6.9884]
[1728487505506,6.987,143.13,143.07,17.4731]
[1728487505507,6.9879,143.11,143.07,17.4731]
[1728487505811,6.9879,143.11,143.06,6.9897]
[1728487505812,6.9882,143.1,143.06,8.38754327]
[1728487505979,6.9882,143.1,143.06,6.9899]
[1728487507403,6.9894,143.08,143.05,32.85034142]
[1728487507905,21.41709607,143.12,143.04,17.477]
[1728487508485,21.41709607,143.12,143.05,32.85034142]
[1728487508686,21.41709607,143.12,143.04,17.477]
[1728487509192,6.9892,143.08,143.04,24.4676]
[1728487509710,6.9887,143.09,143.05,6.9905]
[1728487510288,6.9885,143.1,143.05,6.9905]
[1728487510602,6.9886,143.09,143.05,6.9905]
[1728487511511,1.41709607,143.12,143.06,1.39777768]
[1728487511512,15.3664,143.11,143.06,1.39777768]
[1728487511683,15.3664,143.11,142.97,6.9944]
[1728487511684,17.4759,143.06,142.97,6.9944]
[1728487511883,6.992,143.02,142.97,6.9944]
[1728487514093,6.9935,142.99,142.94,6.9958]
[1728487514300,17.44961523,143.02,142.96,6.9948]
[1728487514594,17.44961523,143.02,142.92,15.6011]
[1728487514595,6.9921,143.02,142.97,6.9944]
[1728487515015,8.73922359,143.04,142.99,6.9934]
[1728487515193,8.73922359,143.04,142.97,17.4853]
[1728487515194,1.74812359,143.04,143.0,6.9929]
[1728487515407,6.9908,143.05,142.99,17.4829]
[1728487515719,6.9908,143.05,143.0,6.9929]
[1728487516217,6.9908,143.05,142.99,17.4829]
[1728487516390,6.9908,143.05,142.99,24.4759]
[1728487516718,6.9915,143.03,142.99,24.4759]
[1728487516886,6.9915,143.03,142.99,17.4829]
[1728487517323,6.9906,143.05,143.0,6.9929]
[1728487517913,0.25098,143.06,142.99,17.4829]
[1728487518222,8.73805298,143.06,143.01,6.9924]
[1728487519404,6.9905,143.05,143.01,6.9924]
[1728487519614,6.9905,143.05,143.0,6.9929]
[1728487520509,1.74776972,143.04,143.0,6.9929]
[1728487520707,6.991,143.04,143.0,6.9929]
[1728487521825,6.9906,143.05,143.01,6.9924]
[1728487522028,17.4722,143.09,142.99,17.4829]
[1728487522029,17.33476332,143.12,143.0,49.33154142]
[1728487522201,1.74733839,143.09,143.05,6.9902]
[1728487522407,8.73548798,143.1,143.0,49.33154142]
[1728487523022,24.32143577,143.12,143.07,6.9892]
[1728487523212,8.73443577,143.12,143.08,6.989]
[1728487523425,6.9872,143.12,143.07,24.4626]
[1728487523613,15.624,143.15,143.03,108.97024142]
[1728487523614,24.35662065,143.15,143.11,6.9876]
[1728487523824,24.35652065,143.15,143.09,17.471]
[1728487524129,6.9865,143.14,143.1,6.988]
[1728487524330,24.35702065,143.15,143.1,6.988]
[1728487524539,17.37092065,143.15,143.11,6.9875]
[1728487524721,15.624,143.15,143.11,6.9875]
[1728487525615,15.624,143.15,143.12,6.987]
[1728487525820,9.03925094,143.18,143.11,17.4683]
[1728487526025,6.9847,143.17,143.11,17.4683]
[1728487526632,6.9847,143.17,143.12,6.9871]
[1728487527530,1.74634591,143.16,143.11,24.4558]
[1728487527735,0.12549,143.17,143.11,17.4683]
[1728487527920,1.74649688,143.17,143.11,17.4683]
[1728487528263,6.9853,143.16,143.11,24.4557]
[1728487528532,15.5128,143.19,143.11,24.4557]
[1728487528533,8.73224052,143.15,143.11,24.4557]
[1728487528733,6.9857,143.15,143.11,24.4557]
[1728487529914,1.74653577,143.14,143.11,17.4683]
[1728487530113,6.9861,143.14,143.11,17.4683]
[1728487530435,6.9858,143.15,143.11,17.4683]
[1728487530634,6.9858,143.15,143.11,24.4558]
[1728487531632,6.9853,143.16,143.12,6.9871]
[1728487532621,1.74642779,143.15,143.11,17.4683]
[1728487532935,7.30253297,143.18,143.11,17.4683]
[1728487532936,6.9853,143.16,143.11,24.4558]
[1728487533142,8.73186453,143.16,143.12,6.987]
[1728487533347,1.74656453,143.16,143.12,6.987]
[1728487533635,16.0333735,143.18,143.13,6.9864]
[1728487534226,6.9847,143.17,143.13,6.9864]
[1728487535142,1.74634053,143.18,143.13,6.9864]
[1728487535315,6.9843,143.18,143.14,6.9861]
[1728487535516,17.25903696,143.19,143.14,6.9861]
[1728487535825,24.24313696,143.19,143.14,6.9861]
[1728487536025,6.9841,143.19,143.15,6.9856]
[1728487536233,6.4175,143.2,143.13,20.53023985]
[1728487536543,6.4175,143.2,143.1,76.4931]
[1728487536544,6.9843,143.18,143.14,6.9856]
[1728487536716,6.9843,143.18,143.13,6.9865]
[1728487536923,6.9848,143.17,143.13,6.9865]
[1728487537633,6.9856,143.15,143.12,17.467]
[1728487537842,6.9853,143.16,143.12,17.467]
[1728487538224,21.74644933,143.18,143.09,72.94433985]
[1728487538424,6.9857,143.15,143.11,17.4687]
[1728487538637,21.74644933,143.18,143.12,6.9871]
[1728487538638,1.74656659,143.17,143.12,6.9871]
[1728487538848,6.9841,143.19,143.14,6.9858]
[1728487539142,8.73081005,143.18,143.13,17.4658]
[1728487539315,0.12549,143.19,143.15,6.9855]
[1728487539316,8.73001341,143.19,143.15,6.9855]
[1728487539715,20.0,143.21,143.17,6.9845]
[1728487539716,8.72925196,143.21,143.17,6.9845]
[1728487539940,6.9831,143.21,143.17,6.9845]
[1728487540241,17.18804335,143.22,143.17,17.4613]
[1728487540418,6.9827,143.21,143.17,24.4459]
[1728487540916,8.72943383,143.2,143.14,17.4646]
[1728487541111,6.9836,143.2,143.16,5.9851]
[1728487541516,15.4422,143.22,143.14,17.4646]
[1728487541517,1.74598276,143.19,143.14,17.4646]
[1728487541716,1.74618181,143.21,143.14,17.4646]
[1728487542122,8.72928181,143.21,143.16,6.9848]
[1728487542317,1.74618181,143.21,143.14,17.4646]
[1728487542522,6.9833,143.2,143.16,6.9851]
[1728487542925,1.74618181,143.21,143.13,20.53023985]
[1728487543130,1.74618181,143.21,143.17,6.9843]
[1728487543346,8.72908181,143.21,143.17,6.9843]
[1728487543736,1.74618181,143.21,143.16,17.4619]
[1728487543926,8.72898181,143.21,143.17,6.9846]
[1728487544135,17.18811874,143.22,143.17,6.9846]
[1728487544542,6.9827,143.21,143.16,17.4619]
[1728487544841,6.9847,143.17,143.13,24.4523]
[1728487545049,1.74634526,143.16,143.13,17.4657]
[1728487545344,6.9848,143.17,143.13,17.4657]
[1728487545524,7.10929,143.19,143.14,6.9861]
[1728487545847,6.9838,143.19,143.15,6.9856]
[1728487546531,8.72968691,143.2,143.15,6.9856]
[1728487547141,1.74638691,143.2,143.14,6.986]
[1728487547520,6.9837,143.19,143.14,6.986]
[1728487547826,8.73049388,143.18,143.14,6.986]
[1728487548028,6.9838,143.19,143.14,6.986]
[1728487548441,8.72899344,143.21,143.17,6.9846]
[1728487548652,1.74619344,143.21,143.16,6.9848]
[1728487548827,6.9832,143.2,143.16,6.9848]
[1728487549435,1.74619344,143.21,143.17,17.4613]
[1728487549436,8.72911515,143.21,143.17,17.4613]
[1728487549824,1.74591515,143.21,143.14,37.99503985]
[1728487550027,21.74591515,143.21,143.1,20.53023985]
[1728487550228,6.9856,143.16,143.11,24.456]
[1728487550429,6.986,143.15,143.11,17.4685]
[1728487550643,0.12549,143.18,143.11,24.4557]
[1728487550851,21.99750403,143.18,143.11,17.4685]
[1728487551146,6.9863,143.14,143.1,6.988]
[1728487551323,28.45160403,143.18,143.09,34.9429]
[1728487551525,6.9852,143.16,143.12,6.987]
[1728487552454,6.9869,143.13,143.08,16.2687]
[1728487552658,1.7465377,143.15,143.08,16.2687]
[1728487552659,1.7465377,143.15,143.1,6.988]
[1728487552840,8.7325377,143.15,143.1,6.988]
[1728487553048,6.9862,143.14,143.1,6.988]
[1728487553247,8.7322377,143.15,143.11,6.9876]
[1728487553535,8.7322377,143.15,143.1,6.9879]
[1728487553536,6.9861,143.14,143.1,6.9879]
[1728487554353,8.7325377,143.15,143.1,6.9879]
[1728487554550,8.7325377,143.15,143.09,17.4709]
[1728487554732,8.7325377,143.15,143.11,6.9875]
[1728487554932,8.7325377,143.15,143.09,17.4709]
[1728487555147,1.7465377,143.15,143.09,24.4593]
[1728487555330,6.9866,143.13,143.09,24.4593]
[1728487555649,6.9862,143.14,143.1,6.988]
[1728487555856,1.7468072,143.13,143.1,6.988]
[1728487556037,1.7468072,143.13,143.09,24.4593]
[1728487556236,8.73299243,143.14,143.09,24.4593]
[1728487556438,8.73244874,143.15,143.11,6.9876]
[1728487557350,8.73244874,143.15,143.1,6.9879]
[1728487557547,6.9861,143.14,143.1,6.9879]
[1728487557850,6.9875,143.12,143.07,6.9891]
[1728487558055,6.9875,143.12,143.05,40.9566]
[1728487558056,6.9889,143.09,143.05,6.9904]
[1728487558281,0.12549,143.12,143.04,15.5039]
[1728487558282,6.9883,143.1,143.06,6.99]
[1728487558446,6.9882,143.1,143.04,15.5039]
[1728487558753,6.9882,143.1,143.06,6.99]
[1728487559453,7.11329,143.11,143.07,6.9895]
[1728487559630,6.9878,143.11,143.07,6.9895]
[1728487560639,7.23828,143.12,143.07,6.9891]
[1728487561158,6.9878,143.11,143.07,6.9891]
[1728487561657,1.74708756,143.12,143.04,20.53023985]
[1728487561860,6.9872,143.12,143.08,6.989]
[1728487562054,6.9873,143.12,143.07,24.4626]
[1728487562259,6.9873,143.12,143.08,6.989]
[1728487562435,6.9867,143.13,143.09,6.9882]
[1728487562758,21.74707581,143.15,143.09,17.4712]
[1728487562959,1.74707581,143.15,143.12,6.9871]
[1728487563336,22.5008,143.16,143.12,6.9871]
[1728487563337,24.2474457,143.16,143.12,6.9871]
[1728487563739,8.20068565,143.18,143.13,6.9865]
[1728487563936,15.18498565,143.18,143.14,6.9861]
[1728487564548,1.74631898,143.19,143.12,20.53023985]
[1728487564858,17.60993265,143.2,143.16,6.9847]
[1728487565441,6.9829,143.21,143.17,6.9846]
[1728487565442,8.72898443,143.21,143.17,6.9846]
[1728487566351,14.81860136,143.22,143.18,6.9841]
[1728487567148,7.83630136,143.22,143.14,20.53023985]
[1728487567460,21.7459811,143.21,143.1,20.53023985]
[1728487567754,20.25098,143.17,143.1,17.4697]
[1728487567964,1.74635966,143.17,143.13,6.9862]
[1728487568135,8.73105966,143.17,143.12,24.454]
[1728487568538,6.9857,143.15,143.12,17.467]
[1728487568855,1.7465599,143.14,143.09,17.4706]
[1728487569035,6.9871,143.12,143.09,17.4706]
[1728487569236,6.9863,143.14,143.09,24.4588]
[1728487569470,6.9871,143.12,143.09,17.4706]
[1728487569835,1.74683238,143.15,143.06,55.47933985]
[1728487569836,1.7468582,143.11,143.06,17.4745]
[1728487570149,0.25098,143.11,143.03,17.4781]
[1728487570553,6.9887,143.09,143.05,6.9903]